[Event "*** Titled Tuesday Blitz"]
[Site "Chess.com"]
[Date "2018.09.04"]
[Round "6"]
[White "jk13"]
[Black "DanielNaroditsky"]
[Result "0-1"]
[WhiteElo "2546"]
[BlackElo "2950"]
[TimeControl "180+2"]
[EndTime "14:51:59 PDT"]
[Termination "DanielNaroditsky won by checkmate"]

1. e4 {[%clk 0:03:01.9]} 1... e5 {[%clk 0:03:00.8]} 2. Nf3 {[%clk 0:03:02.8]}
2... Nc6 {[%clk 0:03:02.2]} 3. Bc4 {[%clk 0:03:04.3]} 3... Bc5 {[%clk 0:03:03]}
4. c3 {[%clk 0:03:05.1]} 4... Nf6 {[%clk 0:03:04.5]} 5. d3 {[%clk 0:03:06.7]}
5... a6 {[%clk 0:03:05.3]} 6. Bb3 {[%clk 0:03:08.1]} 6... Ba7 {[%clk 0:03:07]}
7. Nbd2 {[%clk 0:03:08]} 7... d6 {[%clk 0:03:08.4]} 8. O-O {[%clk 0:03:07.6]}
8... h6 {[%clk 0:03:09.5]} 9. Re1 {[%clk 0:03:02.8]} 9... g5 {[%clk 0:03:10.1]}
10. Nc4 {[%clk 0:03:02.1]} 10... g4 {[%clk 0:03:11]} 11. Nfd2 {[%clk 0:03:00.5]}
11... h5 {[%clk 0:03:12]} 12. Nf1 {[%clk 0:02:53.9]} 12... h4 {[%clk 0:03:13.2]}
13. Be3 {[%clk 0:02:55]} 13... g3 {[%clk 0:03:08.7]} 14. Bxa7 {[%clk 0:02:13.6]}
14... Rxa7 {[%clk 0:03:08.3]} 15. fxg3 {[%clk 0:01:54.7]} 15... hxg3 {[%clk
0:03:10.2]} 16. h3 {[%clk 0:01:56.1]} 16... Nh5 {[%clk 0:03:09.2]} 17. Qf3
{[%clk 0:01:54.2]} 17... Nf4 {[%clk 0:03:09.8]} 18. Nxg3 {[%clk 0:01:37.4]}
18... Qg5 {[%clk 0:03:07.4]} 19. Ne3 {[%clk 0:01:32.3]} 19... Ne7 {[%clk
0:02:58.1]} 20. Rf1 {[%clk 0:01:04.4]} 20... Bxh3 {[%clk 0:02:41.3]} 21. Kf2
{[%clk 0:00:28.4]} 21... Nxd3+ {[%clk 0:02:36.8]} 22. Ke2 {[%clk 0:00:29.3]}
22... Nf4+ {[%clk 0:02:38.1]} 23. Kd2 {[%clk 0:00:27.8]} 23... Bxg2 {[%clk
0:02:32.6]} 24. Nxg2 {[%clk 0:00:26.7]} 24... Nxg2+ {[%clk 0:02:34]} 25. Kc2
{[%clk 0:00:25]} 25... Ne3+ {[%clk 0:02:31.7]} 26. Kd3 {[%clk 0:00:25.9]} 26...
Nxf1 {[%clk 0:02:32.1]} 27. Bxf7+ {[%clk 0:00:14.8]} 27... Kd8 {[%clk
0:02:32.2]} 28. Rxf1 {[%clk 0:00:16.7]} 28... Rf8 {[%clk 0:02:25.8]} 29. Qg2
{[%clk 0:00:11.6]} 29... c5 {[%clk 0:02:19.6]} 30. Qh3 {[%clk 0:00:11.4]} 30...
Kc7 {[%clk 0:02:15.1]} 31. Ne2 {[%clk 0:00:10.1]} 31... Raa8 {[%clk 0:02:01.9]}
32. Qe6 {[%clk 0:00:11]} 32... Nc6 {[%clk 0:02:02.6]} 33. Kc4 {[%clk 0:00:09.8]}
33... Nd8 {[%clk 0:01:53]} 34. Qd5 {[%clk 0:00:11.1]} 34... Qe7 {[%clk
0:01:53.6]} 35. Ng3 {[%clk 0:00:09.7]} 35... Rxf7 {[%clk 0:01:53.3]} 36. Nf5
{[%clk 0:00:11.3]} 36... Qd7 {[%clk 0:01:54.3]} 37. Rd1 {[%clk 0:00:11.8]} 37...
Qb5# {[%clk 0:01:55.1]} 0-1

[Event "*** Titled Tuesday Blitz"]
[Site "Chess.com"]
[Date "2018.09.04"]
[Round "6"]
[White "Cryptochess"]
[Black "colemman"]
[Result "1-0"]
[WhiteElo "2533"]
[BlackElo "2468"]
[TimeControl "180+2"]
[EndTime "14:52:08 PDT"]
[Termination "Cryptochess won by checkmate"]

1. e4 {[%clk 0:03:01.9]} 1... c5 {[%clk 0:03:01.1]} 2. Nf3 {[%clk 0:03:02.3]}
2... e6 {[%clk 0:03:02.9]} 3. d4 {[%clk 0:03:03.3]} 3... cxd4 {[%clk 0:03:04.7]}
4. Nxd4 {[%clk 0:03:05.1]} 4... Nf6 {[%clk 0:03:06.1]} 5. Nc3 {[%clk 0:03:06.4]}
5... Nc6 {[%clk 0:03:07.6]} 6. Nxc6 {[%clk 0:03:00]} 6... bxc6 {[%clk
0:03:07.3]} 7. Bd3 {[%clk 0:03:00.8]} 7... d5 {[%clk 0:03:07.6]} 8. O-O {[%clk
0:03:01.3]} 8... Be7 {[%clk 0:03:08.5]} 9. Bf4 {[%clk 0:02:44.8]} 9... O-O
{[%clk 0:03:02.9]} 10. Re1 {[%clk 0:02:34.9]} 10... d4 {[%clk 0:02:45.6]} 11.
Ne2 {[%clk 0:02:16.4]} 11... Nh5 {[%clk 0:02:44.5]} 12. e5 {[%clk 0:02:07]}
12... Nxf4 {[%clk 0:02:33.2]} 13. Nxf4 {[%clk 0:02:08.8]} 13... Rb8 {[%clk
0:02:23.2]} 14. Rb1 {[%clk 0:01:38.5]} 14... c5 {[%clk 0:02:22.7]} 15. Qg4
{[%clk 0:01:30.2]} 15... Bb7 {[%clk 0:02:16.7]} 16. Rbd1 {[%clk 0:01:25.6]}
16... Kh8 {[%clk 0:02:10.7]} 17. c3 {[%clk 0:01:16.1]} 17... Qb6 {[%clk
0:01:29.8]} 18. Bxh7 {[%clk 0:00:30.2]} 18... Kxh7 {[%clk 0:01:27.2]} 19. Qh5+
{[%clk 0:00:31.3]} 19... Kg8 {[%clk 0:01:26.7]} 20. Rd3 {[%clk 0:00:31.9]} 20...
f6 {[%clk 0:00:45.1]} 21. Rh3 {[%clk 0:00:30.6]} 21... fxe5 {[%clk 0:00:42.2]}
22. Qh7+ {[%clk 0:00:31.7]} 22... Kf7 {[%clk 0:00:42.5]} 23. Qg6+ {[%clk
0:00:33.3]} 23... Kg8 {[%clk 0:00:43.4]} 24. Nxe6 {[%clk 0:00:34]} 24... Rf7
{[%clk 0:00:36.6]} 25. Qh7# {[%clk 0:00:33.6]} 1-0

[Event "*** Titled Tuesday Blitz"]
[Site "Chess.com"]
[Date "2018.09.04"]
[Round "6"]
[White "Spring199"]
[Black "LordIron"]
[Result "1-0"]
[WhiteElo "2237"]
[BlackElo "2221"]
[TimeControl "180+2"]
[EndTime "14:52:23 PDT"]
[Termination "Spring199 won on time"]

1. d4 {[%clk 0:03:01.9]} 1... d5 {[%clk 0:01:59.6]} 2. Bf4 {[%clk 0:03:00.6]}
2... c6 {[%clk 0:01:59.7]} 3. e3 {[%clk 0:03:00.9]} 3... g6 {[%clk 0:01:56]} 4.
Bd3 {[%clk 0:02:59.2]} 4... Bg7 {[%clk 0:01:56.9]} 5. Nf3 {[%clk 0:02:59.5]}
5... Nf6 {[%clk 0:01:57.8]} 6. Nbd2 {[%clk 0:02:56.6]} 6... O-O {[%clk 0:01:59]}
7. O-O {[%clk 0:02:55.7]} 7... Nbd7 {[%clk 0:01:58.2]} 8. Ne5 {[%clk 0:02:56.2]}
8... Nh5 {[%clk 0:01:57]} 9. Nxd7 {[%clk 0:02:48.3]} 9... Bxd7 {[%clk
0:01:55.1]} 10. Bg5 {[%clk 0:02:48.7]} 10... f6 {[%clk 0:01:50.2]} 11. Bh4
{[%clk 0:02:48.6]} 11... Qc8 {[%clk 0:01:31.1]} 12. c4 {[%clk 0:02:41.6]} 12...
e5 {[%clk 0:01:05.7]} 13. cxd5 {[%clk 0:02:26.2]} 13... exd4 {[%clk 0:00:52.6]}
14. exd4 {[%clk 0:02:25.9]} 14... cxd5 {[%clk 0:00:51.5]} 15. Rc1 {[%clk
0:02:26]} 15... Qe8 {[%clk 0:00:48.7]} 16. Re1 {[%clk 0:02:07.3]} 16... Qf7
{[%clk 0:00:48.5]} 17. Qf3 {[%clk 0:02:01.8]} 17... g5 {[%clk 0:00:48.8]} 18.
Bg3 {[%clk 0:01:54.6]} 18... Nxg3 {[%clk 0:00:48.9]} 19. hxg3 {[%clk 0:01:56.3]}
19... f5 {[%clk 0:00:40.7]} 20. Rc7 {[%clk 0:01:53.6]} 20... Bxd4 {[%clk
0:00:29.4]} 21. Rxb7 {[%clk 0:01:44.9]} 21... Rab8 {[%clk 0:00:29.7]} 22. Rxb8
{[%clk 0:01:40.1]} 22... Rxb8 {[%clk 0:00:30.7]} 23. Nb3 {[%clk 0:01:41.4]}
23... Bxb2 {[%clk 0:00:27]} 24. Qe3 {[%clk 0:01:34.4]} 24... Bb5 {[%clk
0:00:17.2]} 25. Qxg5+ {[%clk 0:01:32.6]} 25... Bg7 {[%clk 0:00:12.4]} 26. Bxf5
{[%clk 0:01:30.2]} 26... Bd7 {[%clk 0:00:12.3]} 27. Re7 {[%clk 0:01:26.1]} 27...
Qf6 {[%clk 0:00:08.4]} 28. Qxf6 {[%clk 0:01:25.3]} 28... Bxf6 {[%clk 0:00:09.2]}
29. Rxd7 {[%clk 0:01:26.1]} 1-0

[Event "*** Titled Tuesday Blitz"]
[Site "Chess.com"]
[Date "2018.09.04"]
[Round "6"]
[White "lexisvar"]
[Black "metra93"]
[Result "0-1"]
[WhiteElo "2440"]
[BlackElo "2507"]
[TimeControl "180+2"]
[EndTime "14:52:34 PDT"]
[Termination "metra93 won by resignation"]

1. e4 {[%clk 0:03:01.9]} 1... e6 {[%clk 0:03:00.3]} 2. d4 {[%clk 0:03:02.6]}
2... d5 {[%clk 0:03:01.3]} 3. e5 {[%clk 0:03:04]} 3... c5 {[%clk 0:03:00.2]} 4.
c3 {[%clk 0:03:05.3]} 4... Ne7 {[%clk 0:02:55.4]} 5. Nf3 {[%clk 0:02:59.3]} 5...
Nec6 {[%clk 0:02:40.7]} 6. Bd3 {[%clk 0:02:53.4]} 6... b6 {[%clk 0:02:41.4]} 7.
Na3 {[%clk 0:02:01.5]} 7... Ba6 {[%clk 0:02:36]} 8. Bxa6 {[%clk 0:01:57]} 8...
Nxa6 {[%clk 0:02:37.9]} 9. Nb5 {[%clk 0:01:50.7]} 9... Nc7 {[%clk 0:02:35.7]}
10. Bg5 {[%clk 0:01:48.3]} 10... Qd7 {[%clk 0:02:31.9]} 11. Nxc7+ {[%clk
0:01:44.4]} 11... Qxc7 {[%clk 0:02:33.8]} 12. O-O {[%clk 0:01:45.3]} 12... h6
{[%clk 0:02:31.2]} 13. Bh4 {[%clk 0:01:45.4]} 13... Be7 {[%clk 0:02:31.4]} 14.
Bxe7 {[%clk 0:01:44.9]} 14... Qxe7 {[%clk 0:02:26.8]} 15. Qa4 {[%clk 0:01:44.8]}
15... Qd7 {[%clk 0:02:26.6]} 16. dxc5 {[%clk 0:01:41]} 16... bxc5 {[%clk
0:02:26.7]} 17. Qa3 {[%clk 0:01:42.5]} 17... Qe7 {[%clk 0:02:25.5]} 18. Qa6
{[%clk 0:01:39.6]} 18... Qd7 {[%clk 0:02:21.8]} 19. Qa3 {[%clk 0:01:40.2]} 19...
Qe7 {[%clk 0:02:21.8]} 20. Qa4 {[%clk 0:01:33.9]} 20... Qb7 {[%clk 0:02:14.4]}
21. b4 {[%clk 0:01:31.2]} 21... O-O {[%clk 0:02:09.9]} 22. bxc5 {[%clk
0:01:28.6]} 22... Rab8 {[%clk 0:02:06.9]} 23. Rfe1 {[%clk 0:01:25.9]} 23... Qb5
{[%clk 0:02:04.4]} 24. Qa3 {[%clk 0:01:16.4]} 24... Rfc8 {[%clk 0:02:05.1]} 25.
Nd4 {[%clk 0:01:16.8]} 25... Qa5 {[%clk 0:01:58]} 26. Qxa5 {[%clk 0:01:05]}
26... Nxa5 {[%clk 0:01:59.9]} 27. Rab1 {[%clk 0:00:59.1]} 27... Rxb1 {[%clk
0:01:55.6]} 28. Rxb1 {[%clk 0:00:59.7]} 28... Rxc5 {[%clk 0:01:57.5]} 29. h4
{[%clk 0:00:43.3]} 29... Rxc3 {[%clk 0:01:55.1]} 30. Nb5 {[%clk 0:00:34]} 30...
Rc2 {[%clk 0:01:55.7]} 31. Nxa7 {[%clk 0:00:32.4]} 31... Rxa2 {[%clk 0:01:56.7]}
32. Nc8 {[%clk 0:00:32.6]} 32... g5 {[%clk 0:01:54.6]} 33. hxg5 {[%clk
0:00:29.5]} 33... hxg5 {[%clk 0:01:56.5]} 34. Nd6 {[%clk 0:00:30.1]} 34... Nc4
{[%clk 0:01:48.2]} 35. Rb8+ {[%clk 0:00:29.1]} 35... Kg7 {[%clk 0:01:44.2]} 36.
Ne8+ {[%clk 0:00:28.7]} 36... Kg6 {[%clk 0:01:41]} 37. Nf6 {[%clk 0:00:19.9]}
37... Nxe5 {[%clk 0:01:40.7]} 38. Ne8 {[%clk 0:00:17.7]} 38... Ng4 {[%clk
0:01:38.1]} 39. f3 {[%clk 0:00:13]} 39... Ra1+ {[%clk 0:01:37]} 0-1

[Event "*** Titled Tuesday Blitz"]
[Site "Chess.com"]
[Date "2018.09.04"]
[Round "6"]
[White "Yurovskykh_Oleksandr"]
[Black "dreamist"]
[Result "0-1"]
[WhiteElo "2430"]
[BlackElo "2650"]
[TimeControl "180+2"]
[EndTime "14:52:37 PDT"]
[Termination "dreamist won by resignation"]

1. d4 {[%clk 0:03:01.9]} 1... Nf6 {[%clk 0:01:51.9]} 2. Bg5 {[%clk 0:03:00.2]}
2... Ne4 {[%clk 0:01:52.5]} 3. Bf4 {[%clk 0:03:01.1]} 3... d5 {[%clk 0:01:48.9]}
4. e3 {[%clk 0:03:01.7]} 4... c5 {[%clk 0:01:49.2]} 5. Bd3 {[%clk 0:03:02.8]}
5... Nf6 {[%clk 0:01:49]} 6. c3 {[%clk 0:03:04]} 6... Nc6 {[%clk 0:01:49.3]} 7.
Nd2 {[%clk 0:03:03]} 7... e6 {[%clk 0:01:48.2]} 8. Ngf3 {[%clk 0:03:03.8]} 8...
Be7 {[%clk 0:01:48.7]} 9. h3 {[%clk 0:03:04.2]} 9... O-O {[%clk 0:01:47.1]} 10.
O-O {[%clk 0:03:04.9]} 10... b6 {[%clk 0:01:44.7]} 11. Ne5 {[%clk 0:03:02]}
11... Bb7 {[%clk 0:01:44.7]} 12. Nxc6 {[%clk 0:02:53.7]} 12... Bxc6 {[%clk
0:01:43.3]} 13. Qe2 {[%clk 0:02:55.2]} 13... Bd6 {[%clk 0:01:36]} 14. Bxd6
{[%clk 0:02:45.1]} 14... Qxd6 {[%clk 0:01:35.7]} 15. dxc5 {[%clk 0:02:36.7]}
15... bxc5 {[%clk 0:01:36.1]} 16. e4 {[%clk 0:02:34.8]} 16... e5 {[%clk
0:01:31.4]} 17. exd5 {[%clk 0:02:34]} 17... Qxd5 {[%clk 0:01:31.9]} 18. f3
{[%clk 0:02:21.9]} 18... Rad8 {[%clk 0:01:29.8]} 19. Be4 {[%clk 0:02:15.8]}
19... Qxd2 {[%clk 0:01:25.7]} 20. Qxd2 {[%clk 0:02:15.1]} 20... Rxd2 {[%clk
0:01:26.1]} 21. Bxc6 {[%clk 0:02:16.8]} 21... Rxb2 {[%clk 0:01:23.9]} 22. Rfe1
{[%clk 0:02:13.4]} 22... Rc8 {[%clk 0:01:16]} 23. Ba4 {[%clk 0:02:12.4]} 23...
Rd8 {[%clk 0:01:16.2]} 24. Rad1 {[%clk 0:02:02.3]} 24... Rxd1 {[%clk 0:01:16.3]}
25. Rxd1 {[%clk 0:02:03.9]} 25... g6 {[%clk 0:01:15.5]} 26. Bb3 {[%clk
0:02:04.9]} 26... a5 {[%clk 0:00:54.9]} 27. Rd8+ {[%clk 0:02:05.5]} 27... Kg7
{[%clk 0:00:56.4]} 28. Ra8 {[%clk 0:02:07.2]} 28... Nh5 {[%clk 0:00:57.3]} 29.
Rxa5 {[%clk 0:02:06.5]} 29... Nf4 {[%clk 0:00:57.7]} 30. Rxc5 {[%clk 0:02:00.6]}
30... Rxg2+ {[%clk 0:00:57.2]} 31. Kf1 {[%clk 0:01:48.9]} 31... Rg3 {[%clk
0:00:57.4]} 32. Bd1 {[%clk 0:01:44.5]} 32... Rxh3 {[%clk 0:00:55.9]} 33. Kg1
{[%clk 0:01:17.9]} 33... Rg3+ {[%clk 0:00:56.6]} 34. Kf1 {[%clk 0:01:18.9]}
34... h5 {[%clk 0:00:56.3]} 35. Rxe5 {[%clk 0:01:18.3]} 35... h4 {[%clk
0:00:57.3]} 36. Re4 {[%clk 0:01:08.5]} 36... g5 {[%clk 0:00:57.4]} 37. Kf2
{[%clk 0:00:54.2]} 37... Rg2+ {[%clk 0:00:57]} 38. Ke3 {[%clk 0:00:52.6]} 38...
h3 {[%clk 0:00:57]} 0-1

[Event "*** Titled Tuesday Blitz"]
[Site "Chess.com"]
[Date "2018.09.04"]
[Round "6"]
[White "aa175"]
[Black "LuisFSiles"]
[Result "0-1"]
[WhiteElo "1947"]
[BlackElo "2179"]
[TimeControl "180+2"]
[EndTime "14:52:37 PDT"]
[Termination "LuisFSiles won by checkmate"]

1. d4 {[%clk 0:03:01.9]} 1... f5 {[%clk 0:02:57.4]} 2. h3 {[%clk 0:03:02.2]}
2... d5 {[%clk 0:02:54.2]} 3. Nf3 {[%clk 0:03:00.9]} 3... Nf6 {[%clk 0:02:51.6]}
4. Ne5 {[%clk 0:03:01.8]} 4... c5 {[%clk 0:02:44]} 5. g4 {[%clk 0:02:58.2]} 5...
Nc6 {[%clk 0:02:37.2]} 6. g5 {[%clk 0:02:54.4]} 6... Ne4 {[%clk 0:02:31.3]} 7.
Nxc6 {[%clk 0:02:49.7]} 7... bxc6 {[%clk 0:02:31.5]} 8. dxc5 {[%clk 0:02:51.6]}
8... e5 {[%clk 0:02:24.6]} 9. h4 {[%clk 0:02:49.4]} 9... Bxc5 {[%clk 0:02:21.7]}
10. e3 {[%clk 0:02:48.4]} 10... O-O {[%clk 0:02:16.3]} 11. Nd2 {[%clk
0:02:43.7]} 11... Qe7 {[%clk 0:01:44.4]} 12. c4 {[%clk 0:02:34.1]} 12... f4
{[%clk 0:01:20.3]} 13. cxd5 {[%clk 0:02:29.4]} 13... Nxf2 {[%clk 0:01:11.8]} 14.
Qb3 {[%clk 0:02:17.5]} 14... Kh8 {[%clk 0:01:05.9]} 15. Kxf2 {[%clk 0:02:16.4]}
15... fxe3+ {[%clk 0:01:06]} 16. Ke1 {[%clk 0:02:18.3]} 16... exd2+ {[%clk
0:01:01.3]} 17. Bxd2 {[%clk 0:02:20.2]} 17... cxd5 {[%clk 0:00:41.1]} 18. Bg2
{[%clk 0:02:15.9]} 18... Bf2+ {[%clk 0:00:32.7]} 19. Ke2 {[%clk 0:01:31.5]}
19... Bg4+ {[%clk 0:00:32.7]} 20. Kf1 {[%clk 0:01:15.4]} 20... Rab8 {[%clk
0:00:21.4]} 21. Qxd5 {[%clk 0:01:07.1]} 21... Rbd8 {[%clk 0:00:21.7]} 22. Qa5
{[%clk 0:01:04.7]} 22... Qd6 {[%clk 0:00:15.2]} 23. Bf3 {[%clk 0:00:43.2]} 23...
Qd3+ {[%clk 0:00:12.5]} 24. Be2 {[%clk 0:00:35.4]} 24... Qxe2+ {[%clk
0:00:12.1]} 25. Kg2 {[%clk 0:00:37.3]} 25... Qf3+ {[%clk 0:00:11.5]} 26. Kf1
{[%clk 0:00:38.4]} 26... Bb6+ {[%clk 0:00:12.1]} 27. Ke1 {[%clk 0:00:40.3]}
27... Qe2# {[%clk 0:00:12]} 0-1

[Event "*** Titled Tuesday Blitz"]
[Site "Chess.com"]
[Date "2018.09.04"]
[Round "6"]
[White "RU_B9"]
[Black "akretchetov"]
[Result "0-1"]
[WhiteElo "1995"]
[BlackElo "2231"]
[TimeControl "180+2"]
[EndTime "14:52:42 PDT"]
[Termination "akretchetov won on time"]

1. c4 {[%clk 0:03:01.9]} 1... e5 {[%clk 0:03:00]} 2. Nc3 {[%clk 0:03:02.1]} 2...
Nf6 {[%clk 0:03:00.5]} 3. Nf3 {[%clk 0:03:02.4]} 3... Nc6 {[%clk 0:02:58.7]} 4.
e3 {[%clk 0:03:02.4]} 4... Bb4 {[%clk 0:02:56.8]} 5. Qc2 {[%clk 0:03:02.2]} 5...
O-O {[%clk 0:02:56.2]} 6. Nd5 {[%clk 0:03:00.6]} 6... d6 {[%clk 0:02:52.4]} 7.
a3 {[%clk 0:02:56]} 7... Ba5 {[%clk 0:02:47.8]} 8. b4 {[%clk 0:02:48.6]} 8...
Bb6 {[%clk 0:02:48.1]} 9. Nxf6+ {[%clk 0:02:46.7]} 9... Qxf6 {[%clk 0:02:46.5]}
10. Bb2 {[%clk 0:02:46.6]} 10... a5 {[%clk 0:02:40.7]} 11. c5 {[%clk 0:02:41.8]}
11... Ba7 {[%clk 0:02:37]} 12. b5 {[%clk 0:02:36.6]} 12... Ne7 {[%clk
0:02:37.2]} 13. b6 {[%clk 0:02:37.2]} 13... Bb8 {[%clk 0:02:32.3]} 14. Be2
{[%clk 0:01:59.5]} 14... cxb6 {[%clk 0:02:28.6]} 15. cxb6 {[%clk 0:01:53.8]}
15... Bf5 {[%clk 0:02:16.3]} 16. d3 {[%clk 0:01:50.3]} 16... d5 {[%clk
0:02:01.9]} 17. O-O {[%clk 0:01:31.2]} 17... Nc6 {[%clk 0:01:54.5]} 18. e4
{[%clk 0:01:25.7]} 18... Be6 {[%clk 0:01:51.6]} 19. exd5 {[%clk 0:00:55.7]}
19... Bxd5 {[%clk 0:01:51.8]} 20. Rfe1 {[%clk 0:00:42.8]} 20... Bd6 {[%clk
0:01:44.9]} 21. Bc3 {[%clk 0:00:35.9]} 21... Qh6 {[%clk 0:01:40.9]} 22. h3
{[%clk 0:00:26.3]} 22... Rae8 {[%clk 0:01:28.4]} 23. Qb2 {[%clk 0:00:22.8]}
23... Qg6 {[%clk 0:01:22.5]} 24. Kf1 {[%clk 0:00:16.2]} 24... Kh8 {[%clk
0:01:19.8]} 25. Rad1 {[%clk 0:00:14.5]} 25... f5 {[%clk 0:01:19.9]} 26. Qb5
{[%clk 0:00:08.8]} 26... Qf7 {[%clk 0:01:11.2]} 27. Bxa5 {[%clk 0:00:06.7]}
27... Nxa5 {[%clk 0:01:08.8]} 28. Qxa5 {[%clk 0:00:08.6]} 28... Ra8 {[%clk
0:01:00.4]} 29. Qb5 {[%clk 0:00:07.4]} 29... Rxa3 {[%clk 0:01:00.9]} 30. Ra1
{[%clk 0:00:03]} 30... e4 {[%clk 0:00:56.2]} 0-1

[Event "*** Titled Tuesday Blitz"]
[Site "Chess.com"]
[Date "2018.09.04"]
[Round "6"]
[White "farzadbfd"]
[Black "VladDobrov"]
[Result "0-1"]
[WhiteElo "2537"]
[BlackElo "2705"]
[TimeControl "180+2"]
[EndTime "14:52:49 PDT"]
[Termination "VladDobrov won by resignation"]

1. e4 {[%clk 0:03:01.9]} 1... c5 {[%clk 0:03:00.2]} 2. Nc3 {[%clk 0:03:03]} 2...
Nc6 {[%clk 0:03:01]} 3. g3 {[%clk 0:03:04.4]} 3... g6 {[%clk 0:03:02]} 4. Bg2
{[%clk 0:03:05.9]} 4... Bg7 {[%clk 0:03:03.5]} 5. d3 {[%clk 0:03:07.5]} 5... d6
{[%clk 0:03:05]} 6. Be3 {[%clk 0:03:09]} 6... e5 {[%clk 0:03:06.2]} 7. Nge2
{[%clk 0:03:09.6]} 7... Nge7 {[%clk 0:03:07.5]} 8. O-O {[%clk 0:03:03.2]} 8...
Be6 {[%clk 0:03:08]} 9. f4 {[%clk 0:03:03.9]} 9... Nd4 {[%clk 0:03:00.4]} 10. h3
{[%clk 0:03:00.6]} 10... O-O {[%clk 0:02:53.5]} 11. Kh2 {[%clk 0:03:01]} 11...
Qd7 {[%clk 0:02:53.2]} 12. Qd2 {[%clk 0:02:52.5]} 12... f5 {[%clk 0:02:50.1]}
13. fxe5 {[%clk 0:02:50.5]} 13... dxe5 {[%clk 0:02:49.7]} 14. Rae1 {[%clk
0:02:25.8]} 14... Rf7 {[%clk 0:02:15.5]} 15. Nd1 {[%clk 0:02:15.9]} 15... Raf8
{[%clk 0:02:09.3]} 16. c3 {[%clk 0:02:15.4]} 16... Nxe2 {[%clk 0:02:09.6]} 17.
Qxe2 {[%clk 0:02:12.4]} 17... b6 {[%clk 0:02:08]} 18. Bg5 {[%clk 0:01:22.5]}
18... f4 {[%clk 0:02:04.8]} 19. g4 {[%clk 0:01:09.8]} 19... Nc6 {[%clk
0:02:01.8]} 20. b3 {[%clk 0:00:54.5]} 20... h6 {[%clk 0:01:58.3]} 21. Bh4 {[%clk
0:00:54.8]} 21... g5 {[%clk 0:01:55]} 22. Bf3 {[%clk 0:00:26.8]} 22... gxh4
{[%clk 0:01:55.6]} 23. Nf2 {[%clk 0:00:23.3]} 23... Bf6 {[%clk 0:01:54.7]} 24.
Rd1 {[%clk 0:00:20.8]} 24... Bg5 {[%clk 0:01:54.9]} 25. Qb2 {[%clk 0:00:20.1]}
25... Rd8 {[%clk 0:01:54.9]} 26. Rd2 {[%clk 0:00:20.6]} 26... Qc7 {[%clk
0:01:51.7]} 27. Rfd1 {[%clk 0:00:21.5]} 27... Rfd7 {[%clk 0:01:52.9]} 28. Kg2
{[%clk 0:00:19.4]} 28... Ne7 {[%clk 0:01:48.2]} 29. Kf1 {[%clk 0:00:19.6]} 29...
Ng6 {[%clk 0:01:49.2]} 30. Ke2 {[%clk 0:00:19.8]} 30... Nh8 {[%clk 0:01:50.4]}
31. d4 {[%clk 0:00:14.5]} 31... exd4 {[%clk 0:01:49.5]} 32. cxd4 {[%clk
0:00:15.7]} 32... cxd4 {[%clk 0:01:49]} 33. Rxd4 {[%clk 0:00:16.9]} 33... Rxd4
{[%clk 0:01:48]} 34. Rxd4 {[%clk 0:00:18.5]} 34... Rxd4 {[%clk 0:01:48.8]} 35.
Qxd4 {[%clk 0:00:20.4]} 35... Nf7 {[%clk 0:01:50]} 36. Nd3 {[%clk 0:00:16.6]}
36... Qc2+ {[%clk 0:01:48.5]} 37. Kf1 {[%clk 0:00:13.2]} 37... Qxa2 {[%clk
0:01:49.4]} 38. b4 {[%clk 0:00:10.6]} 38... Qc4 {[%clk 0:01:48.4]} 39. Qxc4
{[%clk 0:00:07.1]} 39... Bxc4 {[%clk 0:01:48.9]} 40. Be2 {[%clk 0:00:08.7]}
40... f3 {[%clk 0:01:50.4]} 41. Bxf3 {[%clk 0:00:09.1]} 41... Bxd3+ {[%clk
0:01:51.2]} 42. Kf2 {[%clk 0:00:10.6]} 42... Ne5 {[%clk 0:01:52.1]} 43. Bd1
{[%clk 0:00:12.2]} 0-1

[Event "*** Titled Tuesday Blitz"]
[Site "Chess.com"]
[Date "2018.09.04"]
[Round "6"]
[White "Sethu0025"]
[Black "michaelk123"]
[Result "1-0"]
[WhiteElo "2693"]
[BlackElo "2494"]
[TimeControl "180+2"]
[EndTime "14:52:59 PDT"]
[Termination "Sethu0025 won by resignation"]

1. e4 {[%clk 0:03:01.9]} 1... c6 {[%clk 0:03:00.3]} 2. d4 {[%clk 0:03:02.2]}
2... d5 {[%clk 0:03:01.8]} 3. e5 {[%clk 0:03:03.5]} 3... Bf5 {[%clk 0:03:02.7]}
4. Nf3 {[%clk 0:03:03.8]} 4... e6 {[%clk 0:03:02.8]} 5. Be2 {[%clk 0:03:05.3]}
5... Ne7 {[%clk 0:03:02.8]} 6. O-O {[%clk 0:03:06]} 6... h6 {[%clk 0:03:00.4]}
7. Nbd2 {[%clk 0:03:06.1]} 7... a5 {[%clk 0:03:00.1]} 8. a4 {[%clk 0:03:06.5]}
8... Nd7 {[%clk 0:02:53.8]} 9. Nb3 {[%clk 0:03:07.3]} 9... Bg6 {[%clk 0:02:50]}
10. Bd2 {[%clk 0:03:07.7]} 10... Nf5 {[%clk 0:02:49.9]} 11. h3 {[%clk
0:02:57.5]} 11... Be7 {[%clk 0:02:47.9]} 12. g4 {[%clk 0:02:57.5]} 12... Nh4
{[%clk 0:02:48.2]} 13. Nxh4 {[%clk 0:02:58.4]} 13... Bxh4 {[%clk 0:02:50.1]} 14.
f4 {[%clk 0:02:59.9]} 14... Be4 {[%clk 0:02:46.9]} 15. Bf3 {[%clk 0:03:00.1]}
15... f5 {[%clk 0:02:33.6]} 16. exf6 {[%clk 0:02:57.4]} 16... Nxf6 {[%clk
0:02:34.4]} 17. Nc5 {[%clk 0:02:56.7]} 17... Kf7 {[%clk 0:02:04.9]} 18. g5
{[%clk 0:02:24.8]} 18... hxg5 {[%clk 0:01:11.1]} 19. fxg5 {[%clk 0:02:23.5]}
19... Qd6 {[%clk 0:01:05.6]} 20. Bxe4 {[%clk 0:02:14.2]} 20... dxe4 {[%clk
0:00:59.7]} 21. Bf4 {[%clk 0:02:13.5]} 21... Qd5 {[%clk 0:00:34.3]} 22. gxf6
{[%clk 0:02:12.6]} 22... gxf6 {[%clk 0:00:35.3]} 23. Kh2 {[%clk 0:02:13.5]}
23... Rag8 {[%clk 0:00:20.6]} 24. Qe2 {[%clk 0:02:11.3]} 24... Qf5 {[%clk
0:00:14.6]} 25. Nxe4 {[%clk 0:01:12.7]} 25... Bg3+ {[%clk 0:00:09.9]} 26. Bxg3
{[%clk 0:01:03.4]} 26... Qxh3+ {[%clk 0:00:04.1]} 27. Kg1 {[%clk 0:01:04.3]}
27... Qh1+ {[%clk 0:00:02.6]} 28. Kf2 {[%clk 0:01:04.6]} 28... Rh2+ {[%clk
0:00:03.4]} 29. Bxh2 {[%clk 0:00:57.5]} 29... Rg2+ {[%clk 0:00:04.3]} 30. Kf3
{[%clk 0:00:54.4]} 30... Rg1+ {[%clk 0:00:05.1]} 31. Ke3 {[%clk 0:00:50.2]} 1-0